Workbook

Sheet 労務外注
AC1: ※弊社記入欄
M3: 請 | R3: 求 | W3: 書
W5: 令 | X5: 和 | Y5: 5 | AA5: 年 | AB5: 10 | AD5: 月 | AE5: 15 | AG5: 日
B7: 株式会社 | F7: キクチコーポレーション | N7: 御中
Y8: 協力会社ｺｰﾄﾞ：
A9: 下記の通り請求いたします｡ | S9: 登録番号：
S11: 請求者住所･氏名･印
B12: 請 | C12: 求 | D12: 金 | E12: 額 | G12: =SUM(P28) -> 0 | T12: 住所
B13: =AB5 -> 10 | D13: 月 | E13: 分
T14: 氏名
V15: 印
A16: 工 事 番 号
A17: 工 事 略 称
A18: 工 事 件 名
A20: 項 目 | I20: 前回迄 | R20: 今回 | AA20: 累計
A21: ① | C21: 契約金額 | G21: =総括表!G32 -> 0 | P21: =総括表!G33 -> 0 | Y21: =SUM(G21,P21) -> 0
C22: 消費税 | G22: =INT(G21*10%) -> 0 | P22: =INT(P21*10%) -> 0 | Y22: =SUM(G22,P22) -> 0
C23: 契約合計 | G23: =SUM(G21:N22) -> 0 | P23: =SUM(P21:W22) -> 0 | Y23: =SUM(Y21:AF22) -> 0
A24: ② | C24: 出来高金額 | G24: =総括表!I35 -> 0 | P24: =SUM(総括表!K35) -> 0 | Y24: =SUM(G24,P24) -> 0
A25: ③ | C25: 保留金額 | G25: =SUM(総括表!I36) -> 0 | P25: =SUM(総括表!K36) -> 0 | Y25: =SUM(G25,P25) -> 0
A26: ④ | C26: 請求金額 ②＋③ | G26: =SUM(G24:N25) -> 0 | P26: =SUM(P24:W25) -> 0 | Y26: =SUM(Y24:AF25) -> 0
C27: 消費税 | G27: =総括表!I38 -> 0 | P27: =+AD56+AD57+AD58 -> 0 | Y27: =SUM(G27,P27) -> 0
C28: 請求合計 | G28: =SUM(G26:N27) -> 0 | P28: =SUM(P26:W27) -> 0 | Y28: =SUM(Y26:AG27) -> 0
A29: ⑤ | C29: 残 高 ①－④ | Y29: =Y21-Y26 -> 0
C30: 消費税 ①－④ | Y30: =Y22-Y27 -> 0
C31: 残高合計 ①－④ | Y31: =SUM(Y29:AF30) -> 0
K33: 銀 | L33: 行 | M33: ・ | N33: 金 | O33: 庫 | P33: ・ | Q33: 組 | R33: 合
A34: 振込銀行 | P34: 本 | Q34: ・ | R34: 支 | S34: 店 | Z34: 毎月１５日締切
D35: 預金種別 | M35: （ | N35: 普 | O35: 通 | P35: １ | Q35: ・ | R35: 当 | S35: 座 | T35: ２ | U35: ）
D36: 口座番号
C37: 口座名義 | D37: ﾌﾘｶﾞﾅ | Z37: 毎月２０日必着
B44: 社是 | T44: 押印欄（弊社利用）
B45: 心にゆとりと豊かさを
B47: スローガン
B49: 「顧客感動」・「コンプライアンス行動」
B51: お客様と社会から信頼される企業へ
Q54: （税率ごとに区分した記載をお願いします）
Q55: 今回請求金額 | V55: =SUM(V56:Z58,AD56:AH58) -> 0
Q56: うち消費税率10％ | AA56: 消費税 | AI56: =+V56+AD56 -> 0
Q57: うち消費税率8％ | AA57: 消費税 | AI57: =+V57+AD57 -> 0
Q58: 対象外 | AA58: 消費税 | AI58: 0
W59: 株式会社 キクチコーポレーション | AI59: =SUM(AI56:AI58) -> 0 | AJ59: =+G12-AI59 -> 0

Sheet 総括表
C1: 総括表 | N1: No. 1
A2: 工 種 | D2: 契 約 | H2: 前回迄出来高 | J2: 今回出来高 | L2: 累計出来高 | N2: 残 高
D4: 数 量 | E4: 単位 | F4: 単 価 | G4: 金 額 | H4: 数 量 | I4: 金 額 | J4: 数 量 | K4: 金 額 | L4: 数 量 | M4: 金 額 | N4: 金 額
A32: 契約金額
A33: 今回変更
A34: 契約累計 | G34: =SUM(G32:G33) -> 0
A35: 出来高金額 | M35: =SUM(I35,K35) -> 0 | N35: =SUM(G34-M35) -> 0
A36: 保留金額 | I36: =-I35*5% -> 0 | K36: =-K35*5% -> 0 | M36: =SUM(I36,K36) -> 0 | N36: =-(M36) -> 0
A37: 請求金額 | G37: =G34 -> 0 | I37: =SUM(I35:I36) -> 0 | K37: =SUM(K35:K36) -> 0 | M37: =SUM(I37+K37) -> 0 | N37: =SUM(N35:N36) -> 0
A38: 消 費 税 | G38: =INT(G37*10%) -> 0 | I38: =INT(I37*10%) -> 0 | K38: =INT(K37*10%) -> 0 | M38: =I38+K38 -> 0 | N38: =G38-M38 -> 0
A39: 合 計 | G39: =SUM(G37:G38) -> 0 | I39: =SUM(I37:I38) -> 0 | K39: =SUM(K37:K38) -> 0 | M39: =SUM(M37:M38) -> 0 | N39: =SUM(N37:N38) -> 0
C40: ※軽減税率対象項目はその旨を示してください
J44: 株式会社 キクチコーポレーション

Sheet 内訳明細書
C1: 内訳明細書 | N1: No. 1
A2: 工 種 | D2: 契 約 | H2: 前回迄出来高 | J2: 今回出来高 | L2: 累計出来高 | N2: 残 高
D4: 数 量 | E4: 単位 | F4: 単 価 | G4: 金 額 | H4: 数 量 | I4: 金 額 | J4: 数 量 | K4: 金 額 | L4: 数 量 | M4: 金 額 | N4: 金 額
C41: ※軽減税率対象項目はその旨を示してください
J44: 株式会社 キクチコーポレーション

Sheet 記入例 （登録事業者)
AC1: ※弊社記入欄
M3: 請 | R3: 求 | W3: 書
W5: 令 | X5: 和 | Y5: 5 | AA5: 年 | AB5: 10 | AD5: 月 | AE5: 15 | AG5: 日
B7: 株式会社 | F7: キクチコーポレーション | N7: 御中
Y8: 協力会社ｺｰﾄﾞ： | AC8: 2 | AD8: 1 | AE8: 0 | AF8: 0 | AG8: 4
A9: 下記の通り請求いたします｡ | S9: 登録番号：
S10: T | U10: 5 | V10: 0 | W10: 1 | X10: 2 | Y10: 4 | Z10: 0 | AA10: 1 | AB10: 0 | AC10: 1 | AD10: 4 | AE10: 4 | AF10: 4 | AG10: 0
S11: 請求者住所･氏名･印
B12: 請 | C12: 求 | D12: 金 | E12: 額 | G12: =SUM(P28) -> 20900 | T12: 住所 | V12: 〒181-0011 三鷹市井口3-19-23
B13: =AB5 -> 10 | D13: 月 | E13: 分
T14: 氏名 | V14: 株式会社 カナエコーポレーション
V15: 印
A16: 工 事 番 号 | H16: 07-○○
A17: 工 事 略 称 | H17: ○○水道
A18: 工 事 件 名 | H18: ○○地区配水管第□号
A20: 項 目 | I20: 前回迄 | R20: 今回 | AA20: 累計
A21: ① | C21: 契約金額 | G21: =+'総括表 (記入例)'!G32 -> 50000 | P21: =総括表!G33 -> 0 | Y21: =SUM(G21,P21) -> 50000
C22: 消費税 | G22: =INT(G21*10%) -> 5000 | P22: =INT(P21*10%) -> 0 | Y22: =SUM(G22,P22) -> 5000
C23: 契約合計 | G23: =SUM(G21:N22) -> 55000 | P23: =SUM(P21:W22) -> 0 | Y23: =SUM(Y21:AF22) -> 55000
A24: ② | C24: 出来高金額 | G24: =+'総括表 (記入例)'!I35 -> 15000 | P24: =+'総括表 (記入例)'!K35 -> 20000 | Y24: =SUM(G24,P24) -> 35000
A25: ③ | C25: 保留金額 | G25: =+'総括表 (記入例)'!I36 -> -750 | P25: =+'総括表 (記入例)'!K36 -> -1000 | Y25: =SUM(G25,P25) -> -1750
A26: ④ | C26: 請求金額 ②＋③ | G26: =SUM(G24:N25) -> 14250 | P26: =SUM(P24:W25) -> 19000 | Y26: =SUM(Y24:AF25) -> 33250
C27: 消費税 | G27: =+'総括表 (記入例)'!I38 -> 1425 | P27: =+AD56+AD57+AD58 -> 1900 | Y27: =SUM(G27,P27) -> 3325
C28: 請求合計 | G28: =SUM(G26:N27) -> 15675 | P28: =SUM(P26:W27) -> 20900 | Y28: =SUM(Y26:AG27) -> 36575
A29: ⑤ | C29: 残 高 ①－④ | Y29: =Y21-Y26 -> 16750
C30: 消費税 ①－④ | Y30: =Y22-Y27 -> 1675
C31: 残高合計 ①－④ | Y31: =SUM(Y29:AF30) -> 18425
C33: 埼 | D33: 玉 | E33: り | F33: そ | G33: な | K33: 銀 | L33: 行 | M33: ・ | N33: 金 | O33: 庫 | P33: ・ | Q33: 組 | R33: 合 | T33: 0 | U33: 0 | V33: 1 | W33: 7
A34: 振込銀行 | C34: 和 | D34: 光 | P34: 本 | Q34: ・ | R34: 支 | S34: 店 | U34: 4 | V34: 8 | W34: 7 | Z34: 毎月１５日締切
D35: 預金種別 | M35: （ | N35: 普 | O35: 通 | P35: １ | Q35: ・ | R35: 当 | S35: 座 | T35: ２ | U35: ） | W35: 1
D36: 口座番号 | Q36: 1 | R36: 2 | S36: 3 | T36: 4 | U36: 5 | V36: ＃ | W36: ＃
C37: 口座名義 | D37: ﾌﾘｶﾞﾅ | F37: ｶ)ｶﾅｴｺｰﾎﾟﾚｰｼｮﾝ | Z37: 毎月２０日必着
F38: 株式会社カナエコーポレーション
B44: 社是 | T44: 押印欄（弊社利用）
B45: 心にゆとりと豊かさを
B47: スローガン
B49: 「顧客感動」・「コンプライアンス行動」
B51: お客様と社会から信頼される企業へ
Q54: （税率ごとに区分した記載をお願いします）
Q55: 今回請求金額 | V55: =SUM(V56:Z58,AD56:AH58) -> 20900
Q56: うち消費税率10％ | V56: =+'総括表 (記入例)'!K37 -> 19000 | AA56: 消費税 | AD56: =+V56*10% -> 1900 | AI56: =+V56+AD56 -> 20900
Q57: うち消費税率8％ | V57: =0 -> 0 | AA57: 消費税 | AD57: =+V57*8% -> 0 | AI57: =+V57+AD57 -> 0
Q58: 対象外 | V58: =0 -> 0 | AA58: 消費税 | AD58: =0 -> 0 | AI58: 0
W59: 株式会社 キクチコーポレーション | AI59: =SUM(AI56:AI58) -> 20900 | AJ59: =+G12-AI59 -> 0

Sheet 総括表 (記入例)
C1: 総括表 | N1: No. 1
A2: 工 種 | D2: 契 約 | H2: 前回迄出来高 | J2: 今回出来高 | L2: 累計出来高 | N2: 残 高
D4: 数 量 | E4: 単位 | F4: 単 価 | G4: 金 額 | H4: 数 量 | I4: 金 額 | J4: 数 量 | K4: 金 額 | L4: 数 量 | M4: 金 額 | N4: 金 額
C5: 工事費 | D5: 1 | E5: 式 | G5: =+'内訳明細書 (記入例)'!$G$8 -> 50000 | H5: =IF(I5=0,0,1) -> 1 | I5: =+'内訳明細書 (記入例)'!$I$8 -> 15000 | J5: =IF(K5=0,0,1) -> 1 | K5: =+'内訳明細書 (記入例)'!$K$8 -> 20000 | L5: =IF(M5=0,0,1) -> 1 | M5: =+I5+K5 -> 35000 | N5: =+G5-M5 -> 15000
C6: 計 | G6: =SUM(G5) -> 50000 | I6: =SUM(I5) -> 15000 | K6: =SUM(K5) -> 20000 | M6: =SUM(M5) -> 35000 | N6: =SUM(N5) -> 15000
A32: 契約金額 | G32: =SUM(G6) -> 50000
A33: 今回変更
A34: 契約累計 | G34: =SUM(G32:G33) -> 50000
A35: 出来高金額 | I35: 15000 | K35: =+K5 -> 20000 | M35: =SUM(I35,K35) -> 35000 | N35: =SUM(G34-M35) -> 15000
A36: 保留金額 | I36: =-I35*5% -> -750 | K36: =-K35*5% -> -1000 | M36: =SUM(I36,K36) -> -1750 | N36: =-(M36) -> 1750
A37: 請求金額 | G37: =G34 -> 50000 | I37: =SUM(I35:I36) -> 14250 | K37: =SUM(K35:K36) -> 19000 | M37: =SUM(I37+K37) -> 33250 | N37: =SUM(N35:N36) -> 16750
A38: 消 費 税 | G38: =INT(G37*10%) -> 5000 | I38: =INT(I37*10%) -> 1425 | K38: =INT(K37*10%) -> 1900 | M38: =I38+K38 -> 3325 | N38: =G38-M38 -> 1675
A39: 合 計 | G39: =SUM(G37:G38) -> 55000 | I39: =SUM(I37:I38) -> 15675 | K39: =SUM(K37:K38) -> 20900 | M39: =SUM(M37:M38) -> 36575 | N39: =SUM(N37:N38) -> 18425
C40: ※軽減税率対象項目はその旨を示してください
J44: 株式会社 キクチコーポレーション

Sheet 内訳明細書 (記入例)
C1: 内訳明細書 | N1: No. 1
A2: 工 種 | D2: 契 約 | H2: 前回迄出来高 | J2: 今回出来高 | L2: 累計出来高 | N2: 残 高
D4: 数 量 | E4: 単位 | F4: 単 価 | G4: 金 額 | H4: 数 量 | I4: 金 額 | J4: 数 量 | K4: 金 額 | L4: 数 量 | M4: 金 額 | N4: 金 額
C5: 工事費
C6: 内訳① | D6: 9 | E6: 回 | F6: 5000 | G6: =+D6*F6 -> 45000 | H6: 3 | I6: =+H6*F6 -> 15000 | J6: 3 | K6: =+J6*F6 -> 15000 | L6: =+H6+J6 -> 6 | M6: =+I6+K6 -> 30000 | N6: =+G6-M6 -> 15000
C7: 内訳② | D7: 10 | E7: 箇所 | F7: 500 | G7: =+D7*F7 -> 5000 | H7: 0 | I7: =+H7*F7 -> 0 | J7: 10 | K7: =+J7*F7 -> 5000 | L7: =+H7+J7 -> 10 | M7: =+I7+K7 -> 5000 | N7: =+G7-M7 -> 0
C8: 計 | G8: =SUM(G6:G7) -> 50000 | I8: =SUM(I6:I7) -> 15000 | K8: =SUM(K6:K7) -> 20000 | M8: =SUM(M6:M7) -> 35000 | N8: =SUM(N6:N7) -> 15000
C10: 内訳③ ※軽減税率対象
J44: 株式会社 キクチコーポレーション

Sheet 労務外注 (免税事業者)
AC1: ※弊社記入欄
M3: 請 | R3: 求 | W3: 書
W5: 令 | X5: 和 | Y5: 5 | AA5: 年 | AB5: 10 | AD5: 月 | AE5: 15 | AG5: 日
B7: 株式会社 | F7: キクチコーポレーション | N7: 御中
Y8: 協力会社ｺｰﾄﾞ： | AC8: 2 | AD8: ＃ | AE8: ＃ | AF8: ＃ | AG8: ＃
A9: 下記の通り請求いたします｡ | S9: 登録番号：
AC10: 免 | AD10: 税 | AE10: 事 | AF10: 業 | AG10: 者
S11: 請求者住所･氏名･印
B12: 請 | C12: 求 | D12: 金 | E12: 額 | G12: =SUM(P28) -> 209000 | T12: 住所 | V12: 〒○○○-＃＃＃＃ 練馬区西大泉△△
B13: =AB5 -> 10 | D13: 月 | E13: 分
T14: 氏名 | V14: 株式会社 ○○○コーポレーション
V15: 印
A16: 工 事 番 号 | H16: 07-○○
A17: 工 事 略 称 | H17: ○○水道
A18: 工 事 件 名 | H18: ○○地区配水管第□号
A20: 項 目 | I20: 前回迄 | R20: 今回 | AA20: 累計
A21: ① | C21: 契約金額 | G21: 500000 | P21: =総括表!G33 -> 0 | Y21: =SUM(G21,P21) -> 500000
C22: 消費税 | G22: =INT(G21*10%) -> 50000 | P22: =INT(P21*10%) -> 0 | Y22: =SUM(G22,P22) -> 50000
C23: 契約合計 | G23: =SUM(G21:N22) -> 550000 | P23: =SUM(P21:W22) -> 0 | Y23: =SUM(Y21:AF22) -> 550000
A24: ② | C24: 出来高金額 | G24: 300000 | P24: 200000 | Y24: =SUM(G24,P24) -> 500000
A25: ③ | C25: 保留金額 | G25: -15000 | P25: -10000 | Y25: =SUM(G25,P25) -> -25000
A26: ④ | C26: 請求金額 ②＋③ | G26: =SUM(G24:N25) -> 285000 | P26: =SUM(P24:W25) -> 190000 | Y26: =SUM(Y24:AF25) -> 475000
C27: 消費税 | G27: =INT(G26*10%) -> 28500 | P27: =INT(P26*10%) -> 19000 | Y27: =SUM(G27,P27) -> 47500
C28: 請求合計 | G28: =SUM(G26:N27) -> 313500 | P28: =SUM(P26:W27) -> 209000 | Y28: =SUM(Y26:AG27) -> 522500
A29: ⑤ | C29: 残 高 ①－④ | Y29: =Y21-Y26 -> 25000
C30: 消費税 ①－④ | Y30: =Y22-Y27 -> 2500
C31: 残高合計 ①－④ | Y31: =SUM(Y29:AF30) -> 27500
C33: 埼 | D33: 玉 | E33: り | F33: そ | G33: な | K33: 銀 | L33: 行 | M33: ・ | N33: 金 | O33: 庫 | P33: ・ | Q33: 組 | R33: 合 | T33: 0 | U33: 0 | V33: 1 | W33: 7
A34: 振込銀行 | C34: 和 | D34: 光 | P34: 本 | Q34: ・ | R34: 支 | S34: 店 | U34: 4 | V34: 8 | W34: 7 | Z34: 毎月１５日締切
D35: 預金種別 | M35: （ | N35: 普 | O35: 通 | P35: １ | Q35: ・ | R35: 当 | S35: 座 | T35: ２ | U35: ） | W35: 1
D36: 口座番号 | Q36: 1 | R36: 2 | S36: 3 | T36: 4 | U36: 5 | V36: ＃ | W36: ＃
C37: 口座名義 | D37: ﾌﾘｶﾞﾅ | F37: ｶ)○○○ｺｰﾎﾟﾚｰｼｮﾝ | Z37: 毎月２０日必着
F38: 株式会社 ○○○コーポレーション
B44: 社是 | T44: 押印欄（弊社利用）
B45: 心にゆとりと豊かさを
B47: スローガン
B49: 「顧客感動」・「コンプライアンス行動」
B51: お客様と社会から信頼される企業へ
Q54: （税率ごとに区分した記載をお願いします）
Q55: 今回請求金額 | V55: =SUM(V56,V57,V58,AD56,AD57,AD58) -> 209000
Q56: うち消費税率10％ | V56: =+P26 -> 190000 | AA56: 消費税 | AD56: =+V56*10% -> 19000
Q57: うち消費税率8％ | V57: =0 -> 0 | AA57: 消費税 | AD57: =+V57*8% -> 0
Q58: 対象外 | V58: =0 -> 0 | AA58: 消費税 | AD58: =0 -> 0
W59: 株式会社 キクチコーポレーション

Sheet 記入例（登録事業者) (複数税率)
AC1: ※弊社記入欄
M3: 請 | R3: 求 | W3: 書
W5: 令 | X5: 和 | Y5: 5 | AA5: 年 | AB5: 10 | AD5: 月 | AE5: 15 | AG5: 日
B7: 株式会社 | F7: キクチコーポレーション | N7: 御中
Y8: 協力会社ｺｰﾄﾞ： | AC8: 2 | AD8: 1 | AE8: 0 | AF8: 0 | AG8: 4
A9: 下記の通り請求いたします｡ | S9: 登録番号：
S10: T | U10: 5 | V10: 0 | W10: 1 | X10: 2 | Y10: 4 | Z10: 0 | AA10: 1 | AB10: 0 | AC10: 1 | AD10: 4 | AE10: 4 | AF10: 4 | AG10: 0
S11: 請求者住所･氏名･印
B12: 請 | C12: 求 | D12: 金 | E12: 額 | G12: =SUM(P28) -> 60876 | T12: 住所 | V12: 〒181-0011 三鷹市井口3-19-23
B13: =AB5 -> 10 | D13: 月 | E13: 分
T14: 氏名 | V14: 株式会社 カナエコーポレーション
V15: 印
A16: 工 事 番 号 | H16: 07-○○
A17: 工 事 略 称 | H17: ○○水道
A18: 工 事 件 名 | H18: ○○地区配水管第□号
A20: 項 目 | I20: 前回迄 | R20: 今回 | AA20: 累計
A21: ① | C21: 契約金額 | G21: =+'総括表 (記入例) (複数税率)'!G37 -> 83000 | P21: =総括表!G33 -> 0 | Y21: =SUM(G21,P21) -> 83000
C22: 消費税 | G22: =+'総括表 (記入例) (複数税率)'!G38 -> 5240 | P22: =INT(P21*10%) -> 0 | Y22: =SUM(G22,P22) -> 5240
C23: 契約合計 | G23: =SUM(G21:N22) -> 88240 | P23: =SUM(P21:W22) -> 0 | Y23: =SUM(Y21:AF22) -> 88240
A24: ② | C24: 出来高金額 | G24: =+'総括表 (記入例) (複数税率)'!I35 -> 17000 | P24: =+'総括表 (記入例) (複数税率)'!K35 -> 61000 | Y24: =SUM(G24,P24) -> 78000
A25: ③ | C25: 保留金額 | G25: =+'総括表 (記入例) (複数税率)'!I36 -> -850 | P25: =+'総括表 (記入例) (複数税率)'!K36 -> -3050 | Y25: =SUM(G25,P25) -> -3900
A26: ④ | C26: 請求金額 ②＋③ | G26: =+'総括表 (記入例) (複数税率)'!I37 -> 16150 | P26: =SUM(P24:W25) -> 57950 | Y26: =SUM(Y24:AF25) -> 74100
C27: 消費税 | G27: =+'総括表 (記入例) (複数税率)'!I38 -> 1577 | P27: =+AD56+AD57+AD58 -> 2926 | Y27: =SUM(G27,P27) -> 4503
C28: 請求合計 | G28: =SUM(G26:N27) -> 17727 | P28: =SUM(P26:W27) -> 60876 | Y28: =SUM(Y26:AG27) -> 78603
A29: ⑤ | C29: 残 高 ①－④ | Y29: =Y21-Y26 -> 8900
C30: 消費税 ①－④ | Y30: =Y22-Y27 -> 737
C31: 残高合計 ①－④ | Y31: =SUM(Y29:AF30) -> 9637
C33: 埼 | D33: 玉 | E33: り | F33: そ | G33: な | K33: 銀 | L33: 行 | M33: ・ | N33: 金 | O33: 庫 | P33: ・ | Q33: 組 | R33: 合 | T33: 0 | U33: 0 | V33: 1 | W33: 7
A34: 振込銀行 | C34: 和 | D34: 光 | P34: 本 | Q34: ・ | R34: 支 | S34: 店 | U34: 4 | V34: 8 | W34: 7 | Z34: 毎月１５日締切
D35: 預金種別 | M35: （ | N35: 普 | O35: 通 | P35: １ | Q35: ・ | R35: 当 | S35: 座 | T35: ２ | U35: ） | W35: 1
D36: 口座番号 | Q36: 1 | R36: 2 | S36: 3 | T36: 4 | U36: 5 | V36: ＃ | W36: ＃
C37: 口座名義 | D37: ﾌﾘｶﾞﾅ | F37: ｶ)ｶﾅｴｺｰﾎﾟﾚｰｼｮﾝ | Z37: 毎月２０日必着
F38: 株式会社カナエコーポレーション
B44: 社是 | T44: 押印欄（弊社利用）
B45: 心にゆとりと豊かさを
B47: スローガン
B49: 「顧客感動」・「コンプライアンス行動」
B51: お客様と社会から信頼される企業へ
Q54: （税率ごとに区分した記載をお願いします）
Q55: 今回請求金額 | V55: =SUM(V56:Z58,AD56:AH58) -> 60876
Q56: うち消費税率10％ | V56: =30000-30000*5% -> 28500 | AA56: 消費税 | AD56: =+V56*10% -> 2850 | AI56: =+V56+AD56 -> 31350
Q57: うち消費税率8％ | V57: =1000-1000*5% -> 950 | AA57: 消費税 | AD57: =+V57*8% -> 76 | AI57: =+V57+AD57 -> 1026
Q58: 対象外 | V58: =30000-30000*5% -> 28500 | AA58: 消費税 | AD58: =0 -> 0 | AI58: 28500
W59: 株式会社 キクチコーポレーション | AI59: =SUM(AI56:AI58) -> 60876 | AJ59: =+G12-AI59 -> 0

Sheet 総括表 (記入例) (複数税率)
C1: 総括表 | N1: No. 1
A2: 工 種 | D2: 契 約 | H2: 前回迄出来高 | J2: 今回出来高 | L2: 累計出来高 | N2: 残 高
D4: 数 量 | E4: 単位 | F4: 単 価 | G4: 金 額 | H4: 数 量 | I4: 金 額 | J4: 数 量 | K4: 金 額 | L4: 数 量 | M4: 金 額 | N4: 金 額
C5: 工事費
C6: 内訳①、内訳② | D6: 1 | E6: 式 | G6: =+'内訳明細書 (記入例) (複数税率)'!G8 -> 50000 | H6: =IF(I6=0,0,1) -> 1 | I6: =+'内訳明細書 (記入例) (複数税率)'!I8 -> 15000 | J6: =IF(K6=0,0,1) -> 1 | K6: =+'内訳明細書 (記入例) (複数税率)'!K8 -> 30000 | L6: =IF(M6=0,0,1) -> 1 | M6: =+I6+K6 -> 45000 | N6: =+G6-M6 -> 5000
C7: 小計 | G7: =SUM(G6) -> 50000 | I7: =SUM(I6) -> 15000 | K7: =SUM(K6) -> 30000 | M7: =SUM(M6) -> 45000 | N7: =SUM(N6) -> 5000
C9: 内訳③※軽減税率 | D9: 1 | E9: 式 | G9: =+'内訳明細書 (記入例) (複数税率)'!G11 -> 3000 | H9: =IF(I9=0,0,1) -> 1 | I9: =+'内訳明細書 (記入例) (複数税率)'!I10 -> 2000 | J9: 1 | K9: =+'内訳明細書 (記入例) (複数税率)'!K10 -> 1000 | L9: 1 | M9: =+I9+K9 -> 3000 | N9: =+G9-M9 -> 0
C10: 内訳④不課税 | D10: 1 | E10: 式 | G10: =+'内訳明細書 (記入例) (複数税率)'!G15 -> 30000 | H10: 0 | I10: =+'内訳明細書 (記入例) (複数税率)'!I14 -> 0 | J10: 1 | K10: =+'内訳明細書 (記入例) (複数税率)'!K14 -> 30000 | L10: 1 | M10: 30000 | N10: 0
C12: 計 | G12: =SUM(G7+G9+G10) -> 83000 | I12: =SUM(I7+I9+I10) -> 17000 | K12: =SUM(K7+K9+K10) -> 61000 | M12: =SUM(M7+M9+M10) -> 78000 | N12: =SUM(N7+N9+N10) -> 5000
A32: 契約金額 | G32: =SUM(G12) -> 83000
A33: 今回変更
A34: 契約累計 | G34: =SUM(G32:G33) -> 83000
A35: 出来高金額 | I35: =SUM(I12) -> 17000 | K35: =SUM(K12) -> 61000 | M35: =SUM(I35,K35) -> 78000 | N35: =SUM(G34-M35) -> 5000
A36: 保留金額 | I36: =-I35*0.05 -> -850 | K36: =-K35*0.05 -> -3050 | M36: =SUM(I36,K36) -> -3900 | N36: =-(M36) -> 3900
A37: 請求金額 | G37: =G34 -> 83000 | I37: =SUM(I35:I36) -> 16150 | K37: =SUM(K35:K36) -> 57950 | M37: =SUM(I37+K37) -> 74100 | N37: =SUM(N35:N36) -> 8900
A38: 消 費 税 | G38: =INT(G7*10%)+INT(G9*8%)+INT(G10*0) -> 5240 | I38: =I37*(I7*10%+I9*8%+I10*0%)/(I7+I9+I10) -> 1577 | K38: =K37*(K7*10%+K9*8%+K10*0%)/(K7+K9+K10) -> 2926 | M38: =I38+K38 -> 4503 | N38: =G38-M38 -> 737
A39: 合 計 | G39: =SUM(G37:G38) -> 88240 | I39: =SUM(I37:I38) -> 17727 | K39: =SUM(K37:K38) -> 60876 | M39: =SUM(M37:M38) -> 78603 | N39: =SUM(N37:N38) -> 9637
C40: ※軽減税率対象項目はその旨を示してください
J44: 株式会社 キクチコーポレーション

Sheet 内訳明細書 (記入例) (複数税率)
C1: 内訳明細書 | N1: No. 1
A2: 工 種 | D2: 契 約 | H2: 前回迄出来高 | J2: 今回出来高 | L2: 累計出来高 | N2: 残 高
D4: 数 量 | E4: 単位 | F4: 単 価 | G4: 金 額 | H4: 数 量 | I4: 金 額 | J4: 数 量 | K4: 金 額 | L4: 数 量 | M4: 金 額 | N4: 金 額
C5: 工事費
C6: 内訳① | D6: 9 | E6: 回 | F6: 5000 | G6: =+D6*F6 -> 45000 | H6: 3 | I6: =+H6*F6 -> 15000 | J6: 5 | K6: =+J6*F6 -> 25000 | L6: =+H6+J6 -> 8 | M6: =+I6+K6 -> 40000 | N6: =+G6-M6 -> 5000
C7: 内訳② | D7: 10 | E7: 箇所 | F7: 500 | G7: =+D7*F7 -> 5000 | H7: 0 | I7: =+H7*F7 -> 0 | J7: 10 | K7: =+J7*F7 -> 5000 | L7: =+H7+J7 -> 10 | M7: =+I7+K7 -> 5000 | N7: =+G7-M7 -> 0
C8: 小計 | G8: =SUM(G6:G7) -> 50000 | I8: =SUM(I6:I7) -> 15000 | K8: =SUM(K6:K7) -> 30000 | M8: =SUM(M6:M7) -> 45000 | N8: =SUM(N6:N7) -> 5000
C10: 内訳③ ※軽減税率対象 | D10: 15 | E10: 本 | F10: 200 | G10: =+D10*F10 -> 3000 | H10: 10 | I10: =+H10*F10 -> 2000 | J10: 5 | K10: =+J10*F10 -> 1000 | L10: =+H10+J10 -> 15 | M10: =+I10+K10 -> 3000 | N10: =+G10-M10 -> 0
C11: 小計 | G11: =SUM(G10) -> 3000 | I11: =SUM(I10) -> 2000 | K11: =SUM(K10) -> 1000 | M11: =SUM(M10) -> 3000 | N11: =SUM(N10) -> 0
C14: 内訳④ 不課税 | D14: 1 | E14: 箇所 | F14: 30000 | G14: =+D14*F14 -> 30000 | H14: 0 | I14: =+H14*F14 -> 0 | J14: 1 | K14: =+J14*F14 -> 30000 | L14: =+H14+J14 -> 1 | M14: =+I14+K14 -> 30000 | N14: =+G14-M14 -> 0
C15: 小計 | G15: =SUM(G14) -> 30000 | I15: =SUM(I14) -> 0 | K15: =SUM(K14) -> 30000 | M15: =SUM(M14) -> 30000 | N15: =SUM(N14) -> 0
J44: 株式会社 キクチコーポレーション

Sheet 労務外注 (保留金解除方法) 修正中 (hidden)
AC1: ※弊社記入欄
M3: 請 | R3: 求 | W3: 書
W5: 令 | X5: 和 | Y5: 2 | AA5: 年 | AB5: 2 | AD5: 月 | AE5: 20 | AG5: 日
B7: 株式会社 | F7: ホ ー プ | N7: 御中
A9: 下記の通り請求いたします｡
S10: 請求者住所･氏名･印 | Y10: ｺｰﾄﾞNO.
B12: 請 | C12: 求 | D12: 金 | E12: 額 | G12: =SUM(P28) ->  | T12: 住所 | V12: 東京都練馬区〇丁目〇番
B13: =AB5 -> 2 | D13: 月 | E13: 分
T14: 氏名 | V14: ＡＢＣ株式会社
V15: 印
A16: 工 事 番 号 | H16: 31-○○-○○
A17: 工 事 略 称 | H17: ○○水道
A18: 工 事 件 名 | H18: 配水本管（500㎜）移設工事
A20: 項 目 | I20: 前回迄 | R20: 今回 | AA20: 累計
A21: ① | C21: 契約金額 | G21: ='総括表 (保留金解除方法)修正中'!G34 ->  | P21: ='総括表 (保留金解除方法)修正中'!G35 ->  | Y21: =SUM(G21,P21) -> 
C22: 消費税 | G22: =INT(G21*10%) ->  | P22: =INT(P21*10%) ->  | Y22: =SUM(G22,P22) -> 
C23: 契約合計 | G23: =SUM(G21:N22) ->  | P23: =SUM(P21:W22) ->  | Y23: =SUM(Y21:AF22) -> 
A24: ② | C24: 出来高金額 | G24: ='総括表 (保留金解除方法)修正中'!I37 ->  | P24: =SUM('総括表 (保留金解除方法)修正中'!K37) ->  | Y24: =SUM(G24,P24) -> 
A25: ③ | C25: 保留金額 | G25: =SUM('総括表 (保留金解除方法)修正中'!I38) -> -5000 | P25: =SUM('総括表 (保留金解除方法)修正中'!K38) -> -15000 | Y25: =SUM(G25,P25) -> -20000
A26: ④ | C26: 請求金額 ②＋③ | G26: =SUM(G24:N25) ->  | P26: =SUM(P24:W25) ->  | Y26: =SUM(Y24:AF25) -> 
C27: 消費税 | G27: ='総括表 (保留金解除方法)修正中'!I40 ->  | P27: =INT(P26*10%) ->  | Y27: =SUM(G27,P27) -> 
C28: 請求合計 | G28: =SUM(G26:N27) ->  | P28: =SUM(P26:W27) ->  | Y28: =SUM(Y26:AG27) -> 
A29: ⑤ | C29: 残 高 ①－④ | Y29: =Y21-Y26 -> 
C30: 消費税 ①－④ | Y30: =Y22-Y27 -> 
C31: 残高合計 ①－④ | Y31: =SUM(Y29:AF30) -> 
F33: 〇 | G33: 〇 | H33: 〇 | K33: 銀 | L33: 行 | M33: ・ | N33: 金 | O33: 庫 | P33: ・ | Q33: 組 | R33: 合 | T33: 1 | U33: 2 | V33: 3 | W33: 4
A34: 振込銀行 | F34: × | G34: × | H34: × | P34: 本 | Q34: ・ | R34: 支 | S34: 店 | U34: 5 | V34: 6 | W34: 7 | Z34: 毎月２０日締切
D35: 預金種別 | M35: （ | N35: 普 | O35: 通 | P35: １ | Q35: ・ | R35: 当 | S35: 座 | T35: ２ | U35: ） | W35: 1
D36: 口座番号 | Q36: 1 | R36: 2 | S36: 3 | T36: 4 | U36: 5 | V36: 6 | W36: 7
C37: 口座名義 | D37: ﾌﾘｶﾞﾅ | F37: エービーシー カブシキガイシャ | Z37: 毎月２５日必着
F38: ＡＢＣ株式会社
B44: 社是 | T44: 押印欄（弊社利用）
B45: 心にゆとりと豊かさを
B47: スローガン
B49: 「顧客感動」・「コンプライアンス行動」
B51: お客様と社会から信頼される企業へ
A54: [文書番号(経～053-1)] | Z54: 株式会社 ホ ー プ

Sheet 総括表 (保留金解除方法)修正中 (hidden)
C1: 総括表 | N1: No. 1
A2: 工 種 | D2: 契 約 | H2: 前回迄出来高 | J2: 今回出来高 | L2: 累計出来高 | N2: 残 高
D4: 数 量 | E4: 単位 | F4: 単 価 | G4: 金 額 | H4: 数 量 | I4: 金 額 | J4: 数 量 | K4: 金 額 | L4: 数 量 | M4: 金 額 | N4: 金 額
A6: 1 | C6: =#REF! ->  | D6: 1 | E6: 式 | G6: =#REF! ->  | H6: 1 | I6: =#REF! ->  | J6: 0 | K6: =#REF! ->  | L6: 1 | M6: =#REF! ->  | N6: =SUM(G6-M6) -> 
C7: 小 計 | G7: =SUM(G6) ->  | I7: =SUM(I6) ->  | K7: =SUM(K6) ->  | M7: =SUM(M6) ->  | N7: =SUM(G7-M7) -> 
C9: 法定福利費 | D9: 1 | E9: 式 | G9: 9000 | H9: 1 | I9: 4500 | J9: 1 | K9: 4500 | L9: 0 | M9: =K9+I9 -> 9000 | N9: =SUM(G9-M9) -> 0
C10: 合 計 | G10: =SUM(G7,G9) ->  | I10: =SUM(I7,I9) ->  | K10: =SUM(K7,K9) ->  | M10: =SUM(M7,M9) ->  | N10: =SUM(G10-M10) -> 
C12: 追加工事
A13: 2 | C13: 押込口築造工 | D13: 1 | E13: 式 | G13: =#REF! ->  | H13: 0 | I13: =#REF! ->  | J13: 1 | K13: =#REF! ->  | L13: 1 | M13: =#REF! ->  | N13: =SUM(G13-M13) -> 
C14: 法定福利費 | D14: 1 | E14: 式 | G14: 9000 | H14: 0 | I14: 0 | J14: 1 | K14: 9000 | L14: 0 | M14: =K14+I14 -> 9000 | N14: =SUM(G14-M14) -> 0
C15: 計 | G15: =SUM(G13:G14) ->  | I15: =SUM(I13:I14) ->  | K15: =SUM(K13:K14) ->  | M15: =SUM(M13:M14) ->  | N15: =SUM(G15-M15) -> 
C17: 合 計 | G17: =SUM(G10,G15) ->  | I17: =SUM(I10,I15) ->  | K17: =SUM(K10,K15) ->  | M17: =SUM(M10,M15) ->  | N17: =SUM(G17-M17) -> 
A34: 契約金額 | G34: =G10 -> 
A35: 今回変更 | G35: =G15 -> 
A36: 契約累計 | G36: =SUM(G34:G35) -> 
A37: 出来高金額 | I37: =I10 ->  | K37: =K17 ->  | M37: =M17 ->  | N37: =SUM(G36-M37) -> 
A38: 保留金額 | I38: -5000 | K38: -15000 | M38: =SUM(I38,K38) -> -20000 | N38: =-(M38) -> 20000
A39: 請求金額 | G39: =G36 ->  | I39: =SUM(I37:I38) ->  | K39: =SUM(K37:K38) ->  | M39: =SUM(I39+K39) ->  | N39: =SUM(N37:N38) -> 
A40: 消 費 税 | G40: =INT(G39*10%) ->  | I40: =INT(I39*10%) ->  | K40: =INT(K39*10%) ->  | M40: =I40+K40 ->  | N40: =G40-M40 -> 
A41: 合 計 | G41: =SUM(G39:G40) ->  | I41: =SUM(I39:I40) ->  | K41: =SUM(K39:K40) ->  | M41: =SUM(M39:M40) ->  | N41: =SUM(N39:N40) -> 
A43: [文書番号(経～053-2)] | L43: 株式会社 ホ ー プ
